bitfinex/quotes_ETHUSD_20260109
["timestamp","ask_amount","ask_price","bid_price","bid_amount"]
[1767967931275,0.67409774,3083.0,3082.0,3.24459401]
[1767967931670,0.67409774,3083.0,3082.0,6.48924034]
[1767967931979,0.67409774,3083.0,3082.0,3.24459401]
[1767967932281,1.5793458,3083.0,3082.0,3.24462083]
[1767967932507,1.5793458,3083.0,3081.9,3.24671577]
[1767967932802,0.80663232,3082.9,3081.9,3.24671577]
[1767967933006,0.80663232,3082.9,3081.9,0.002]
[1767967933185,3.24380433,3082.8,3081.9,0.002]
[1767967933697,6.48760866,3082.8,3081.9,0.002]
[1767967933895,3.24380433,3082.8,3081.9,0.002]
[1767967934084,0.72941372,3082.7,3081.9,0.002]
[1767967934282,0.27988829,3083.2,3081.9,0.9922643]
[1767967934283,3.24348869,3083.1,3081.9,0.9922643]
[1767967934508,0.254,3082.7,3081.9,0.9922643]
[1767967935099,0.254,3082.7,3082.2,0.002]
[1767967935499,0.00080112,3083.3,3082.2,0.9922643]
[1767967935685,3.49738349,3083.2,3082.2,0.9922643]
[1767967935884,0.34981846,3083.1,3082.2,0.9922643]
[1767967936232,0.34981846,3083.1,3081.9,0.002]
[1767967936233,1.15924806,3083.0,3081.9,0.002]
[1767967936379,0.90524806,3082.8,3081.3,0.98627229]
[1767967936580,0.90524806,3082.6,3081.3,0.98627229]
[1767967936840,0.90524806,3082.4,3081.0,3.24726736]
[1767967936993,0.90524806,3082.4,3080.5,3.24618041]
[1767967936994,0.02588829,3082.5,3078.5,0.9902643]
[1767967936995,0.90524806,3080.7,3078.5,0.9902643]
[1767967937192,0.02588829,3079.9,3078.8,0.9902643]
[1767967937395,0.02588829,3079.4,3078.4,0.0332844]
[1767967937624,0.02588829,3078.9,3078.4,0.0008]
[1767967937795,0.02588829,3079.2,3078.4,0.0008]
[1767967937796,0.02588829,3079.1,3078.4,0.0008]
[1767967938123,0.93113635,3079.7,3078.4,0.0008]
[1767967938124,0.0008,3080.2,3078.4,0.9910643]
[1767967938330,0.0008,3080.2,3078.9,0.9902643]
[1767967938614,0.0008,3080.2,3079.1,0.9902643]
[1767967938813,3.24744222,3080.2,3079.2,0.03247596]
[1767967939016,0.2548,3080.2,3079.1,0.9902643]
[1767967939181,0.02588829,3080.0,3078.4,3.24833909]
[1767967939381,0.0008,3080.2,3079.8,0.02588829]
[1767967939580,0.0008,3080.2,3079.3,1.01615259]
[1767967939581,0.0008,3080.2,3079.3,0.9902643]
[1767967939810,0.0008,3080.2,3079.1,0.02588829]
[1767967940029,0.0008,3080.2,3078.7,0.02588829]
[1767967940185,9.74047113,3080.2,3078.7,0.02588829]
[1767967940514,1.01633004,3080.1,3078.9,0.02588829]
[1767967940721,1.01633004,3080.1,3079.0,0.02588829]
[1767967941231,1.01633004,3080.1,3079.2,0.02588829]
[1767967941379,0.0008,3080.2,3079.4,0.02588829]
[1767967941606,3.24735134,3080.2,3079.1,3.24767075]
[1767967941930,3.24735134,3080.2,3079.2,3.24758177]
[1767967942308,0.0008,3080.2,3079.3,0.02588829]
[1767967942536,0.02588829,3082.6,3079.7,0.02588829]
[1767967942537,0.42335172,3081.0,3079.7,0.02588829]
[1767967942840,0.42335172,3081.0,3079.5,0.25480016]
[1767967943044,0.90524806,3080.7,3079.5,0.00080016]
[1767967943248,0.90524806,3080.5,3079.5,0.00080016]
[1767967943602,4.15147534,3080.5,3079.5,0.00080016]
[1767967943803,4.15147534,3080.5,3078.4,0.0008008]
[1767967943804,0.90524806,3080.1,3078.4,0.0008008]
[1767967944050,0.90524806,3079.9,3079.0,3.24777411]
[1767967944407,0.90524806,3079.9,3079.1,0.03247702]
[1767967944743,0.254,3079.9,3079.1,0.65280589]
[1767967945138,0.00080016,3080.2,3079.1,0.65280589]
[1767967945372,0.00080016,3080.2,3079.2,6.5276695]
[1767967945563,0.254,3080.1,3079.2,6.49519354]
[1767967945853,1.15924806,3080.1,3078.7,3.24806239]
[1767967946011,0.90524806,3080.0,3078.8,0.32480624]
[1767967946204,0.90524806,3080.0,3078.8,3.2480138]
[1767967946448,0.90524806,3080.0,3078.6,3.24820542]
[1767967946761,0.90524806,3080.0,3078.4,0.0008008]
[1767967946939,0.90524806,3080.0,3078.4,3.24916587]
[1767967947112,0.0008008,3078.8,3078.4,3.24317386]
[1767967947453,0.0008008,3078.8,3078.4,3.89235556]
[1767967947852,0.0008008,3078.8,3078.4,7.1407963]
[1767967948352,0.90524806,3079.8,3078.5,0.03248335]
[1767967948853,0.254,3079.7,3078.5,0.03248335]
[1767967949008,0.254,3079.7,3078.4,7.1415979]
[1767967949251,0.90524806,3079.6,3078.4,3.24397546]
[1767967949458,0.254,3079.7,3078.4,3.24397546]
[1767967949459,0.90524806,3079.4,3078.4,0.0008016]
[1767967950002,0.90604966,3078.8,3077.9,0.0008]
[1767967950313,0.90604966,3078.8,3077.9,3.24976845]
[1767967950314,0.0008016,3078.8,3077.9,3.24976845]
[1767967950595,0.0008016,3078.8,3078.0,0.32517685]
[1767967950805,0.0008016,3078.8,3077.9,3.24976551]
[1767967950957,0.0008016,3078.8,3077.9,0.0008]
[1767967950958,1.16004966,3078.8,3077.9,0.0008]
[1767967951287,0.90524806,3078.7,3077.9,0.0008]
[1767967951454,0.90524806,3078.5,3077.3,0.0008]
[1767967951653,0.90524806,3078.3,3077.3,0.0008]
[1767967951855,0.254,3078.2,3077.3,0.0008]
[1767967952086,0.90524806,3078.3,3077.3,0.0008]
[1767967952255,0.254,3078.2,3077.3,0.0008]
[1767967952452,0.44394188,3078.2,3077.3,0.0008]
[1767967952657,1.34918994,3078.2,3077.3,0.0008]
[1767967953092,0.9692008,3078.1,3077.3,0.0008]
[1767967953480,0.9692008,3078.0,3077.3,0.0008]
[1767967953690,0.9692008,3078.0,3077.1,0.57565104]
[1767967953997,0.74667984,3077.9,3077.1,0.57565104]
[1767967954196,0.02588829,3078.3,3077.1,0.57565104]
[1767967954197,0.0008,3078.6,3077.2,0.99760282]
[1767967954403,0.0008,3078.6,3077.2,1.03009989]
[1767967954583,0.0008,3078.6,3077.2,1.28409989]
[1767967954905,0.0008,3078.6,3077.2,1.03009989]
[1767967955108,0.0008,3078.6,3077.3,1.71449718]
[1767967955263,0.0008,3078.6,3077.4,0.03249496]
[1767967955458,0.9692008,3079.7,3077.6,0.99760282]
[1767967955663,0.254,3079.6,3077.8,0.99760282]
[1767967955899,3.27982943,3079.5,3077.9,0.03248968]
[1767967956201,0.254,3079.6,3077.9,0.28648968]
[1767967956402,0.28647928,3079.6,3077.9,1.2840925]
[1767967957121,0.9700008,3079.8,3078.4,0.0008024]
[1767967957425,0.9692008,3079.7,3078.5,0.254]
[1767967957579,0.9692008,3079.7,3078.6,0.03248229]
[1767967957784,1.00168008,3079.6,3078.5,0.03248335]
[1767967957984,0.0008,3079.8,3078.6,0.03248229]
[1767967958208,0.0008,3079.8,3078.6,1.03008511]
[1767967958524,0.00080016,3080.2,3079.3,0.99760282]
[1767967958725,0.00080016,3080.2,3079.3,0.254]
[1767967959019,0.00080016,3080.2,3079.3,1.25160282]
[1767967959220,0.00080016,3080.2,3079.4,0.99760282]
[1767967959423,0.00080016,3080.2,3079.5,6.4945608]
[1767967959625,0.0008,3080.8,3079.6,1.25160282]
[1767967959825,0.0008,3080.8,3079.7,0.99760282]
[1767967960195,0.0008,3080.8,3079.7,0.254]
[1767967960930,0.0008,3080.8,3079.6,0.254]
[1767967961109,0.65002382,3080.8,3079.6,0.254]
[1767967961431,3.89596845,3080.8,3079.8,3.24696408]
[1767967961615,0.65002382,3080.8,3079.8,6.49392816]
[1767967961813,0.0008,3080.8,3079.8,6.49392816]
[1767967962018,0.0008,3080.8,3079.8,7.49153098]
[1767967962396,3.24672148,3080.8,3079.8,3.50096408]
[1767967962889,3.24672148,3080.8,3079.5,0.00080032]
[1767967962890,6.49264296,3080.8,3079.5,3.24800084]
[1767967963119,0.9692008,3080.7,3079.5,0.00080032]
[1767967963418,0.00080032,3080.2,3079.1,3.2476757]
[1767967963619,0.00080032,3080.2,3079.1,6.49537795]
[1767967963820,0.00080032,3080.2,3079.2,0.99760282]
[1767967965573,0.00080032,3080.2,3079.4,0.99760282]
[1767967967428,0.0008,3080.8,3079.6,0.99760282]
[1767967967769,0.6500292,3080.8,3079.7,1.00329641]
[1767967967947,0.6500292,3080.8,3079.7,0.97796663]
[1767967968465,0.6500292,3080.8,3079.7,1.92005233]
[1767967969578,3.89595524,3080.8,3079.8,3.50096408]
[1767967970177,0.6500292,3080.8,3079.8,6.74792816]
[1767967970480,0.6500292,3080.8,3079.9,0.84139805]
[1767967970840,0.6500292,3080.8,3079.9,1.78348375]
[1767967971031,0.6500292,3080.8,3080.0,0.03246753]
[1767967971032,0.0008,3080.8,3080.0,0.03246753]
[1767967971232,0.001,3080.5,3080.0,0.03246753]
[1767967971446,0.001,3080.5,3080.0,3.24675324]
[1767967972289,0.001,3080.5,3080.0,6.49350648]
[1767967972507,0.001,3080.5,3080.0,7.43559218]
[1767967972655,0.001,3080.5,3080.0,3.24675324]
[1767967973488,0.001,3080.5,3079.6,3.24712201]
[1767967973667,0.001,3080.5,3079.5,0.00080048]
[1767967974180,0.96200194,3080.5,3079.5,0.00080048]
[1767967974483,0.96100194,3080.1,3078.9,3.24787112]
[1767967974672,0.96100194,3080.1,3078.9,0.64958352]
[1767967975082,0.96100194,3080.1,3078.9,3.89745113]
[1767967975386,0.96100194,3080.1,3078.6,0.9420857]
[1767967975788,0.96100194,3079.9,3078.4,0.0008024]
[1767967976086,9.74025972,3080.0,3078.6,6.49642754]
[1767967976087,0.96100194,3079.7,3078.6,6.49642754]
[1767967976470,0.96100194,3079.7,3078.7,0.03248124]
[1767967976678,0.96100194,3079.7,3078.8,0.65289088]
[1767967976857,0.96100194,3079.9,3078.8,0.65289088]
[1767967977681,0.96100194,3079.9,3078.9,0.03247913]
[1767967977864,0.96100194,3079.9,3079.0,6.49561544]
[1767967978479,4.46239653,3080.2,3079.1,0.03247702]
[1767967978790,0.770884,3080.1,3079.1,0.03247702]
[1767967978962,1.73188594,3080.1,3079.1,0.03247702]
[1767967979158,0.96100194,3080.0,3079.1,0.03247702]
[1767967979600,0.770884,3080.1,3079.1,0.03247702]
[1767967979794,0.770884,3080.1,3079.1,0.97456272]
[1767967980001,0.770884,3080.1,3079.2,3.24759677]
[1767967980002,0.75188727,3080.0,3079.2,3.24759677]
[1767967980185,3.50139459,3080.2,3079.3,0.97456061]
[1767967980186,0.25480048,3080.2,3079.3,0.97456061]
[1767967980489,0.25480048,3080.2,3079.3,0.9420857]
[1767967981095,0.00080048,3080.2,3079.3,0.9420857]
[1767967981418,0.00080048,3080.2,3079.3,0.97456061]
[1767967982004,0.00080048,3080.2,3079.5,0.9420857]
[1767967982182,0.0008,3080.8,3080.1,0.9420857]
[1767967983214,3.24673328,3080.8,3079.8,0.03246964]
[1767967983424,6.49266656,3080.8,3079.7,0.97574657]
[1767967983719,6.49266656,3080.8,3079.5,0.00080064]
[1767967984091,0.001,3080.2,3079.5,0.00080064]
[1767967984275,0.001,3080.2,3079.6,0.97574657]
[1767967984476,0.001,3080.2,3079.8,0.97574657]
[1767967984805,0.001,3080.2,3079.5,0.80600533]
[1767967985379,0.001,3080.2,3079.5,1.7817519]
[1767967985578,0.001,3080.2,3079.6,0.97574657]
[1767967985774,0.001,3080.2,3079.7,1.15392176]
[1767967986094,0.001,3080.2,3079.8,6.49392816]
[1767967986404,0.0008,3080.8,3079.9,0.97574657]
[1767967987493,0.0008,3080.8,3079.8,6.49392816]
[1767967988100,0.0008,3080.8,3079.8,7.46967473]
[1767967988296,0.0008,3080.8,3079.9,0.76478499]
[1767967989187,0.0008,3080.8,3080.0,0.97574657]
[1767967989412,0.0008,3081.4,3080.2,0.97574657]
[1767967989902,0.0008,3081.4,3080.2,1.00163486]
[1767967990311,0.0008,3081.4,3080.4,0.97574657]
[1767967990537,0.0008,3081.4,3080.6,0.97574657]
[1767967991243,0.0008,3081.4,3080.5,1.39614947]
[1767967991244,0.0008,3081.7,3081.1,0.97574657]
[1767967991588,0.0008,3081.7,3081.0,0.2548008]
[1767967991808,0.254,3082.6,3081.1,0.97574657]
[1767967992043,6.74206442,3082.6,3081.1,0.97574657]
[1767967992194,0.67420644,3082.5,3081.1,0.97574657]
[1767967992595,0.67420644,3082.5,3081.0,0.2548008]
[1767967992596,6.48845054,3082.4,3081.2,6.74497754]
[1767967993511,6.48845054,3082.4,3081.2,6.49097754]
[1767967993752,0.67420644,3082.5,3081.3,1.22974657]
[1767967993894,0.95630505,3082.7,3081.3,0.254]
[1767967994335,3.24380433,3082.8,3081.4,0.97574657]
[1767967994536,3.24380433,3082.8,3081.5,7.46609217]
[1767967994745,3.24380433,3082.8,3081.6,0.97574657]
[1767967994949,0.2548,3082.9,3081.6,0.97574657]
[1767967995149,0.35063544,3082.9,3081.7,1.0711265]
[1767967995333,0.0008,3082.9,3081.8,0.254]
[1767967996357,0.0008,3082.9,3081.9,0.97574657]
[1767967996523,0.0008,3082.9,3081.8,0.254]
[1767967996723,0.0008,3082.9,3081.9,6.48950322]
[1767967997138,0.0008,3082.9,3081.9,9.73425483]
[1767967997337,0.0008,3082.9,3082.0,0.99882548]
[1767967997524,0.001,3082.4,3082.1,0.254]
[1767967997747,0.0008,3082.9,3082.1,0.254]
[1767967998520,0.0008,3082.9,3081.9,3.24475161]
[1767967998724,0.0008,3082.9,3082.0,0.254]
[1767967998954,0.0008,3082.9,3082.1,6.4890821]
[1767967999260,0.0008,3082.9,3082.1,7.46482867]
[1767967999424,0.0008,3082.9,3081.4,0.97574657]
[1767967999620,0.0008,3082.9,3082.0,4.220392]
[1767967999845,0.0008,3082.9,3082.1,0.254]
[1767968000632,0.0008,3082.9,3082.0,6.48929176]
[1767968000633,0.95630505,3082.8,3082.2,0.254]
[1767968000829,0.32523495,3082.9,3082.2,0.254]
[1767968001059,0.32523495,3082.9,3082.2,3.49841311]
[1767968002086,0.0008,3082.9,3082.2,6.7428489]
[1767968002385,0.0008,3082.9,3082.2,3.49841311]
[1767968002586,0.0008,3082.9,3082.1,3.24448253]
[1767968002887,0.0008,3082.9,3081.8,3.24482658]
[1767968003075,0.0008,3082.9,3082.0,0.254]
[1767968003463,0.0008,3082.9,3082.0,1.22974657]
[1767968003676,0.0008,3082.9,3082.0,2.00168958]
[1767968004474,0.0008,3082.9,3081.8,3.24482658]
[1767968004662,0.0008,3082.9,3082.0,0.254]
[1767968004875,0.0008,3082.9,3082.1,3.24454105]
[1767968005457,0.0008,3082.9,3082.0,3.49860144]
[1767968006394,0.95710505,3082.9,3081.7,3.89]
[1767968006760,0.95710505,3082.9,3081.4,0.254]
[1767968006961,0.95630505,3082.7,3081.4,3.49927399]
[1767968007172,2.27907685,3082.6,3081.4,3.49927399]
[1767968007574,2.27907685,3082.6,3081.4,6.74455211]
[1767968007762,1.3227718,3082.6,3081.4,6.74455211]
[1767968008696,3.24412003,3082.5,3081.4,6.74455211]
[1767968009414,6.48824006,3082.5,3081.4,3.49927399]
[1767968009618,0.67422401,3082.4,3081.4,3.49927399]
[1767968009915,0.67422401,3082.4,3081.4,7.72029868]
[1767968010120,0.67422401,3082.4,3081.5,0.97574657]
[1767968010420,0.67422401,3082.4,3082.3,0.002]
[1767968010581,1.63052906,3082.4,3081.4,6.74455211]
[1767968010786,4.87477308,3082.4,3081.4,6.74455211]
[1767968011118,0.48747731,3082.3,3082.0,0.002]
[1767968012201,0.001,3082.6,3082.0,0.002]
[1767968012386,3.24505882,3082.6,3082.0,0.002]
[1767968012591,0.95630505,3082.5,3082.0,0.002]
[1767968013128,0.001,3082.6,3082.0,0.002]
[1767968013320,0.001,3082.6,3082.0,0.256]
[1767968014083,0.001,3082.6,3082.1,0.99113525]
[1767968014906,0.001,3082.6,3082.2,6.48887158]
[1767968015108,0.001,3082.6,3082.3,0.99113525]
[1767968015329,0.00080112,3083.3,3082.3,0.99113525]
[1767968016129,0.00080192,3083.9,3082.7,0.99113525]
[1767968016347,0.00080192,3083.9,3082.8,0.99113525]
[1767968016348,3.24345113,3083.9,3082.8,0.99113525]
[1767968016502,0.00080192,3083.9,3082.9,0.254]
[1767968016943,0.00080192,3083.9,3082.9,3.49766565]
[1767968017511,0.00080192,3083.9,3082.9,4.27092589]
[1767968017724,0.00080192,3083.9,3082.9,7.514625]
[1767968018339,0.00080192,3083.9,3083.0,0.254]
[1767968019053,0.9594487,3083.7,3082.7,6.7418191]
[1767968019353,0.94859708,3083.6,3082.8,0.254]
[1767968019547,0.94859708,3083.6,3082.7,3.24390955]
[1767968020043,0.94859708,3083.6,3082.7,6.4878191]
[1767968020254,0.96025062,3083.9,3082.7,7.16208114]
[1767968020966,3.24275244,3083.8,3082.7,7.16208114]
[1767968021119,0.9594487,3083.7,3082.7,3.24390955]
[1767968021319,0.9594487,3083.7,3082.7,6.7418191]
[1767968021919,0.00080192,3083.9,3082.7,6.7418191]
[1767968022140,0.00080192,3083.9,3082.7,6.4878191]
[1767968022141,0.9594487,3083.8,3082.7,6.4878191]
[1767968022320,0.9594487,3083.6,3082.8,0.254]
[1767968022521,0.9594487,3083.6,3082.7,6.4878191]
[1767968022721,0.9594487,3083.6,3082.8,0.254]
[1767968023221,0.9594487,3083.6,3082.9,3.24369911]
[1767968023417,0.42029235,3083.7,3082.9,6.48739822]
[1767968023652,0.00080192,3083.9,3082.9,6.48739822]
[1767968023860,0.00080192,3083.9,3082.9,7.47853347]
[1767968024071,0.00080192,3083.9,3083.0,0.99113525]
[1767968024361,0.00080192,3083.9,3083.0,0.002]
[1767968024587,0.001,3083.6,3083.0,0.256]
[1767968025385,0.001,3083.6,3083.0,3.49957805]
[1767968025885,0.9604487,3083.6,3083.0,0.002]
[1767968027388,0.9604487,3083.6,3082.6,0.00280128]
[1767968027389,0.9594487,3083.5,3082.6,0.00280128]
[1767968027552,0.96024998,3083.3,3082.0,3.24663657]
[1767968027758,0.96024998,3083.3,3082.0,0.002]
[1767968027759,0.97528453,3083.1,3082.0,0.002]
[1767968029559,0.97528453,3082.9,3082.0,0.002]
[1767968030161,1.22928453,3082.9,3082.0,0.002]
[1767968031400,1.22928453,3082.9,3081.4,0.002]
[1767968031401,0.97528453,3082.8,3081.4,0.002]
[1767968031612,0.97528453,3082.8,3081.4,3.24724954]
[1767968031817,0.97528453,3082.6,3081.4,0.002]
[1767968033403,0.254,3082.5,3081.4,0.002]
[1767968034220,3.24406646,3082.6,3081.4,0.90982324]
[1767968034420,3.49815514,3082.5,3081.4,0.90982324]
[1767968034622,3.24415514,3082.5,3081.4,0.90982324]
[1767968034788,0.64882031,3082.4,3081.4,1.64990332]
[1767968035384,0.64882031,3082.4,3081.5,0.94027496]
[1767968035790,0.254,3082.6,3081.5,0.94027496]
[1767968036228,0.254,3082.6,3081.6,7.39795822]
[1767968037631,3.49802889,3082.6,3081.4,0.74208008]
[1767968037834,3.49802889,3082.6,3081.5,6.49026717]
[1767968038407,3.49802889,3082.6,3081.7,0.002]
[1767968038608,0.001,3082.3,3081.7,0.002]
[1767968044745,0.001,3082.3,3081.7,0.97480705]
[1767968044965,0.001,3082.3,3081.7,0.002]
[1767968045171,0.001,3082.3,3081.7,0.65123456]
[1767968045955,0.001,3082.3,3081.7,0.002]
[1767968049625,3.2374866,3082.4,3081.7,0.002]
[1767968050209,0.92594419,3082.5,3081.7,0.002]
[1767968050409,3.24407073,3082.6,3081.7,0.002]
[1767968050990,6.48814146,3082.6,3081.7,0.002]
[1767968051313,0.67421415,3082.5,3082.0,0.002]
[1767968052977,7.16263867,3082.5,3082.0,0.002]
[1767968053180,8.08858286,3082.5,3081.7,0.002]
[1767968053503,8.08858286,3082.5,3081.6,0.002]
[1767968053504,0.92594419,3082.4,3081.6,0.002]
[1767968053698,0.92594419,3082.4,3081.4,0.002]
[1767968054008,2.0592237,3082.3,3081.4,0.002]
[1767968054176,0.254,3082.2,3081.4,0.002]
[1767968054648,0.92594419,3082.1,3081.4,0.002]
[1767968054948,0.92594419,3082.1,3081.0,0.00160128]
[1767968054949,3.24464633,3082.0,3081.0,0.00160128]
[1767968055451,6.48929266,3082.0,3081.0,0.97440833]
[1767968055648,0.39756388,3081.9,3081.0,0.97440833]
[1767968057058,0.39756388,3081.9,3081.1,3.2455941]
[1767968057211,3.49848228,3082.2,3081.2,0.97280705]
[1767968057728,6.74296456,3082.2,3081.2,0.97280705]
[1767968057954,0.92594419,3082.1,3081.0,0.00160128]
[1767968058114,0.92594419,3081.9,3081.0,0.00160128]
[1767968059326,0.92594419,3081.7,3081.0,0.00160128]
[1767968059538,0.254,3081.6,3081.0,0.00160128]
[1767968060954,0.92594419,3081.5,3081.0,0.00160128]
[1767968061768,3.24527812,3081.4,3081.0,0.00160128]
[1767968062053,3.91972462,3081.4,3081.0,0.00160128]
[1767968062434,0.6744465,3081.4,3081.0,0.00160128]
[1767968064270,0.6744465,3081.4,3081.3,0.002]
[1767968064474,0.6744465,3081.4,3081.0,0.00160128]
[1767968064773,0.6744465,3081.4,3081.0,0.00360128]
[1767968065074,0.6724465,3081.4,3081.0,0.00360128]
[1767968065669,3.24520423,3081.5,3081.0,0.00360128]
[1767968066939,0.0008008,3081.4,3080.7,0.002]
[1767968069697,0.0008008,3081.4,3080.7,0.97480705]
[1767968072407,0.0008008,3081.4,3080.8,0.97280705]
[1767968074508,0.0008008,3081.4,3080.9,0.98962683]
[1767968074713,0.0008008,3081.4,3081.0,1.73776851]
[1767968075095,0.0008008,3081.4,3081.1,0.03215602]
[1767968075297,0.0008008,3081.4,3081.1,0.98962683]
[1767968075496,3.24450532,3082.2,3081.1,0.98962683]
[1767968075698,0.94803557,3082.9,3081.3,0.98962683]
[1767968075903,3.24451692,3082.9,3081.5,0.98962683]
[1767968076113,3.49851347,3082.9,3081.7,0.98962683]
[1767968076413,3.24451347,3082.9,3081.7,0.98962683]
[1767968076625,0.00080048,3082.9,3081.7,0.98962683]
[1767968076908,0.00080048,3082.9,3081.9,0.98962683]
[1767968077071,0.00080048,3082.9,3082.1,0.98962683]
[1767968078239,0.00080048,3082.9,3082.2,4.23406262]
[1767968078535,0.00080048,3082.9,3081.9,0.98962683]
[1767968078738,0.00080048,3082.9,3081.8,3.24480014]
[1767968079034,0.00080048,3082.9,3081.9,0.34988001]
[1767968079408,0.00080048,3082.9,3081.9,1.33950684]
[1767968079802,0.00080048,3082.9,3081.9,4.58425493]
[1767968080221,0.00080048,3082.9,3081.9,1.33950684]
[1767968080537,0.00080048,3082.9,3082.0,0.98962683]
[1767968080736,0.00080048,3082.9,3082.0,1.44805088]
[1767968081820,0.00080048,3082.9,3082.1,0.98962683]
[1767968082232,0.00080048,3082.9,3081.9,0.34988001]
[1767968082629,0.94803557,3082.9,3081.5,0.98962683]
[1767968083017,0.94301914,3082.9,3081.5,0.98962683]
[1767968083535,0.94301914,3082.9,3081.3,3.49934818]
[1767968083728,0.94301914,3082.9,3081.4,3.24525353]
[1767968084046,0.94301914,3082.9,3081.2,0.17385701]
[1767968084222,0.94723509,3082.7,3081.2,3.41934469]
[1767968084544,0.94723509,3082.5,3081.2,0.17385701]
[1767968085981,0.94723509,3082.5,3081.1,0.002]
[1767968086476,0.94723509,3082.3,3081.1,0.002]
[1767968088346,0.99694803,3082.1,3081.1,0.002]
[1767968088579,1.25094803,3082.0,3081.1,0.002]
[1767968089448,0.99694803,3081.9,3081.1,0.002]
[1767968090374,0.99694803,3081.7,3081.1,0.002]
[1767968090720,0.99694803,3081.7,3081.0,0.00160256]
[1767968090721,1.74561421,3081.7,3081.0,0.00160256]
[1767968091096,0.99694803,3081.6,3081.0,0.00160256]
[1767968092371,6.4903456,3081.5,3081.0,0.00160256]
[1767968092568,0.0008016,3081.4,3080.8,0.002]
[1767968094476,0.0008016,3081.4,3080.8,0.9884981]
[1767968095003,0.0008016,3081.4,3080.9,0.42364317]
[1767968095706,0.0008016,3081.4,3081.0,0.9864981]
[1767968096815,0.0008016,3081.4,3081.1,4.2320922]
[1767968097404,0.0008016,3081.4,3081.2,0.9864981]
[1767968099836,0.99694803,3082.4,3081.3,0.9864981]
[1767968100240,0.99694803,3082.4,3081.2,3.24548474]
[1767968100731,0.99694803,3082.4,3081.1,0.254]
[1767968100943,0.99694803,3082.4,3081.0,0.0008024]
[1767968101308,0.99694803,3082.0,3081.0,0.0008024]
[1767968101530,0.99694803,3081.8,3081.0,0.0008024]
[1767968102134,0.99694803,3081.6,3081.0,0.0008024]
[1767968102331,0.99694803,3081.5,3081.0,0.0008024]
[1767968102533,0.0008024,3081.4,3080.8,0.002]
[1767968106156,0.95915629,3081.3,3080.8,0.002]
[1767968106834,0.95915629,3081.3,3080.7,0.002]
[1767968108345,7.45013383,3081.2,3080.7,0.002]
[1767968108557,7.45013383,3081.2,3080.4,0.00280032]
[1767968108558,0.95915629,3081.0,3080.2,1e-08]
[1767968108762,0.254,3080.9,3080.2,1e-08]
[1767968109057,0.254,3080.9,3080.2,0.03246543]
[1767968109237,0.0008024,3081.4,3080.4,0.99812121]
[1767968109442,3.2460883,3081.4,3080.5,1.42257703]
[1767968110120,3.2460883,3081.4,3080.7,0.99812121]
[1767968110121,0.0008024,3081.4,3080.7,0.99812121]
[1767968110325,0.95995661,3081.7,3080.9,0.99812121]
[1767968110326,0.00080032,3081.7,3080.9,0.99812121]
[1767968110526,0.001,3082.1,3081.5,0.99812121]
[1767968110755,0.001,3082.1,3081.1,0.02588829]
[1767968110756,0.001,3082.6,3081.7,0.99812121]
[1767968111346,0.001,3082.6,3081.1,0.02588829]
[1767968111347,0.001,3082.6,3081.8,1.25212121]
[1767968111547,0.001,3082.6,3081.9,0.99812121]
[1767968112174,0.001,3082.6,3082.0,0.254]
[1767968112355,0.00080096,3082.9,3082.1,0.99812121]
[1767968112638,0.00080096,3082.9,3082.3,0.99812121]
[1767968114167,0.00080096,3082.9,3082.5,0.99812121]
[1767968114477,0.00080096,3082.9,3082.6,0.254]
[1767968115264,0.00080096,3082.9,3081.8,0.99812121]
[1767968115450,0.00080096,3082.9,3081.9,0.254]
[1767968115764,0.00080096,3082.9,3082.2,3.24439705]
[1767968116060,0.00080096,3082.9,3082.1,3.24449528]
[1767968116255,0.00080096,3082.9,3082.0,3.24464633]
[1767968116456,0.00080096,3082.9,3082.1,0.34986463]
[1767968117369,0.00080096,3082.9,3082.1,1.34798584]
[1767968118065,0.00080096,3082.9,3082.2,0.99812121]
[1767968118966,0.00080096,3082.9,3082.2,4.24252123]
[1767968119265,0.00080096,3082.9,3082.3,0.254]
[1767968120440,0.00080096,3082.9,3082.3,0.60384188]
[1767968121236,0.00080096,3082.9,3082.4,3.24422527]
[1767968121742,0.00080096,3082.9,3082.4,6.48845054]
[1767968122348,0.00080096,3082.9,3082.5,0.99812121]
[1767968122853,0.00080096,3082.9,3082.4,3.24422527]
[1767968123054,0.00080096,3082.9,3082.5,0.70923767]
[1767968123772,0.00080096,3082.9,3082.6,3.24401479]
[1767968123976,0.00080096,3082.9,3082.6,6.48802958]
[1767968124167,0.00080128,3083.3,3082.6,6.48802958]
[1767968125073,0.00080128,3083.3,3082.6,7.48615079]
[1767968125274,0.00080128,3083.3,3082.7,0.81953885]
[1767968125579,0.00080128,3083.3,3082.7,1.81766006]
[1767968125747,0.001,3083.6,3082.8,7.73972987]
[1767968125948,0.001,3083.6,3082.8,3.24380433]
[1767968126176,0.96015629,3083.6,3082.7,0.254]
[1767968126564,0.96015629,3083.6,3082.7,3.49788776]
[1767968127040,0.96015629,3083.6,3082.7,6.74179731]
[1767968127239,0.001,3083.6,3082.7,7.41605719]
[1767968127441,0.001,3083.6,3082.8,0.99812121]
[1767968127855,0.001,3083.6,3082.9,6.48739822]
[1767968128060,0.001,3083.6,3083.0,0.99812121]
[1767968128468,0.001,3083.6,3082.9,6.48739822]
[1767968128649,0.001,3083.6,3083.0,0.64873982]
[1767968129061,0.001,3083.6,3083.1,0.254]
[1767968129459,0.001,3084.1,3083.2,0.99812121]
[1767968129975,0.96015629,3084.1,3083.0,0.64873982]
[1767968130184,0.96015629,3084.1,3082.9,3.24443329]
[1767968130379,0.96015629,3084.1,3083.0,3.24359221]
[1767968130548,0.96015629,3084.1,3082.9,0.00080216]
[1767968130746,0.001,3084.1,3083.2,3.24338004]
[1767968131147,0.96015629,3084.1,3083.2,3.49738004]
[1767968131373,0.96015629,3084.1,3083.2,3.84711804]
[1767968131996,3.24254215,3084.0,3083.2,3.84711804]
[1767968132154,4.2026386,3084.1,3083.2,3.84711804]
[1767968132979,0.96015629,3084.1,3083.2,7.09050153]
[1767968133182,0.001,3084.1,3083.2,8.06536443]
[1767968133352,0.001,3084.1,3083.3,0.80653644]
[1767968134890,0.001,3084.1,3083.4,3.24317312]
[1767968136867,0.001,3084.1,3083.4,4.21803602]
[1767968137093,0.001,3084.1,3083.4,7.46120914]
[1767968137992,0.001,3084.1,3083.4,4.21803602]
[1767968138183,0.001,3084.1,3083.5,0.50245725]
[1767968138593,0.001,3083.8,3083.5,0.50245725]